fUSD/lending_fUSD_20250612
["ID","MTS","AMOUNT","RATE_DAILY","PERIOD"]
[365527769,1749756638961,-151.0,0.0001699,2]
[365527770,1749756638970,-151.0,0.0001699,2]
[365527771,1749756638979,-151.0,0.0001699,2]
[365527772,1749756638988,-151.0,0.0001699,2]
[365527773,1749756638997,-151.0,0.0001699,2]
[365527774,1749756639008,-500.0,0.0001699,2]
[365527775,1749756639017,-151.0,0.0001699,2]
[365527776,1749756639026,-581.64953886,0.0001699,2]
[365527777,1749756639036,-151.0,0.0001699,2]
[365527778,1749756639046,-188.0,0.0001699,2]
[365527779,1749756639055,-152.8719109,0.0001699,2]
[365527780,1749756639064,-1500.0,0.0001699,2]
[365527781,1749756639074,-1500.0,0.0001699,2]
[365527782,1749756639083,-1001.93098402,0.0001699,2]
[365527783,1749756639093,-252.245432,0.0001699,2]
[365527784,1749756639101,-4524.73763267,0.0001699,2]
[365527788,1749756640637,-13039.53645199,0.0001699,2]
[365527789,1749756640650,-24673.37227261,0.0001699,2]
[365527790,1749756640660,-1773.57,0.0001699,2]
[365527791,1749756640670,-1773.57,0.0001699,2]
[365527792,1749756640679,-150.0,0.00016998,2]
[365527793,1749756640689,-150.0,0.00016998,2]
[365527794,1749756640699,-1163.98,0.00016998,2]
[365527795,1749756640709,-1163.98,0.00016998,2]
[365527796,1749756640719,-300.0,0.00016999,2]
[365527797,1749756640728,-300.0,0.00016999,2]
[365527798,1749756640738,-1262.723,0.00016999,2]
[365527799,1749756640747,-500.0,0.00016999,2]
[365527800,1749756640757,-150.0,0.00016999,2]
[365527801,1749756640766,-150.0,0.00016999,2]
[365527802,1749756640776,-500.0,0.00016999,2]
[365527803,1749756640788,-500.0,0.00016999,2]
[365527804,1749756640800,-500.0,0.00016999,2]
[365527805,1749756640810,-150.0,0.00016999,2]
[365527806,1749756640819,-500.0,0.00016999,2]
[365527807,1749756640830,-500.0,0.00016999,2]
[365527808,1749756640840,-150.0,0.00016999,2]
[365527809,1749756640850,-500.0,0.00016999,2]
[365527810,1749756640860,-2214.0,0.00016999,2]
[365527811,1749756640870,-150.0,0.00016999,2]
[365527812,1749756640880,-171.84708874,0.00016999,2]
[365527813,1749756640890,-255.79072795,0.00016999,2]
[365527814,1749756640901,-201.53513725,0.00016999,2]
[365527815,1749756640911,-323.83579011,0.00016999,2]
[365527816,1749756640920,-500.0,0.00016999,2]
[365527817,1749756640930,-500.0,0.00016999,2]
[365527818,1749756640939,-500.0,0.00016999,2]
[365527819,1749756640949,-500.0,0.00016999,2]
[365527820,1749756640959,-406.84418705,0.00016999,2]
[365527821,1749756640968,-500.0,0.00016999,2]
[365527822,1749756640978,-500.0,0.00016999,2]
[365527823,1749756640989,-500.0,0.00016999,2]
[365527824,1749756640999,-500.0,0.00016999,2]
[365527825,1749756641008,-500.0,0.00016999,2]
[365527826,1749756641018,-500.0,0.00016999,2]
[365527827,1749756641027,-500.0,0.00016999,2]
[365527828,1749756641036,-500.0,0.00016999,2]
[365527829,1749756641046,-500.0,0.00016999,2]
[365527830,1749756641056,-500.0,0.00016999,2]
[365527831,1749756641066,-500.0,0.00016999,2]
[365527832,1749756641075,-500.0,0.00016999,2]
[365527833,1749756641085,-500.0,0.00016999,2]
[365527834,1749756641094,-500.0,0.00016999,2]
[365527835,1749756641103,-500.0,0.00016999,2]
[365527836,1749756641113,-450.0,0.00016999,2]
[365527837,1749756641123,-2105.41764886,0.00017,2]
[365527838,1749756641132,-833.43051846,0.00017,3]
[365527839,1749756641142,-2203.98047787,0.00017,3]
[365527840,1749756641151,-172759.46873119,0.00017,3]
[365527841,1749756641161,-1317018.88168863,0.00017,2]
[365527842,1749756641173,-908.69435049,0.00017,2]
[365527843,1749756641186,-1283.88204951,0.00017,2]
[365527846,1749756643336,-602.23941177,0.00016868,2]
[365527847,1749756643348,-346.96258823,0.00016868,2]
[365527848,1749756643357,-207.12741177,0.00017,2]
[365527849,1749756643447,-1026.36923153,0.00017,2]
[365527850,1749756643555,-489.02325344,0.00017,2]
[365527857,1749756646097,-524.62632452,0.000169,2]
[365527858,1749756646152,-475.37367548,0.000169,2]
[365527859,1749756646162,-73.62601505,0.00017,2]
[365527860,1749756646173,-51653.79608497,0.00017,2]
[365527861,1749756647036,-232461.67567417,0.00017,2]
[365527862,1749756647062,-94010.40847403,0.00017,2]
[365527863,1749756740277,1341.0,0.00024658,120]
[365527864,1749756777629,2440.0,0.00024658,120]
[365527865,1749756804097,1960.03,0.00024658,120]
[365527866,1749757100130,294.89,0.00016001,2]
[365527867,1749757259255,210.8,0.00016,7]
[365527870,1749757295987,239.2,0.00013699,2]
[365527871,1749757296012,215.26,0.00013699,2]
[365527872,1749757332106,202.0,0.00015608,2]
[365527873,1749757541415,219.0,0.00015608,2]
[365527874,1749757576094,247.61,0.00015974,2]
[365527875,1749757586917,-13456.85638723,0.00023,90]
[365527876,1749757646774,-500.0,0.00024658,120]
[365527877,1749757646797,-297101.0,0.00024658,120]
[365527878,1749757646821,-679.0,0.00024658,120]
[365527879,1749757646846,-150.0,0.00024845,120]
[365527880,1749757646870,-1000.0,0.0002488,120]
[365527881,1749757646895,-300570.0,0.00025,120]
[365527882,1749757690731,666.0,0.00015917,2]
[365527883,1749757692740,202.0,0.00015617,2]
[365527897,1749757832360,-837.28,0.00016052,2]
[365527898,1749757832370,-328.59,0.00016088,2]
[365527899,1749757832380,-500.0,0.00016548,2]
[365527900,1749757832390,-250.41173051,0.00016637,2]
[365527901,1749757832399,-202.0,0.00016649,3]
[365527902,1749757832409,-867.9924602,0.00016746,2]
[365527903,1749757832418,-223.0,0.00016799,2]
[365527904,1749757832428,-1200.0,0.00016799,2]
[365527905,1749757832437,-4578.0062,0.000168,2]
[365527906,1749757832447,-1719.59960928,0.000168,2]
[365527907,1749757832458,-2235.16319072,0.000168,2]
[365527908,1749757832468,-2083.7929,0.000168,2]
[365527909,1749757832478,-1957.856,0.0001682,2]
[365527910,1749757832487,-207.4,0.0001682,2]
[365527911,1749757832497,-11717.92483916,0.0001683,2]
[365527912,1749757832507,-500.0,0.00016863,2]
[365527913,1749757832516,-500.0,0.00016864,2]
[365527914,1749757832526,-891.332079,0.00016868,2]
[365527915,1749757832535,-300.0,0.00016874,2]
[365527916,1749757832545,-2030.296672,0.00016875,2]
[365527917,1749757832555,-151.0,0.0001689,2]
[365527918,1749757832565,-151.0,0.0001689,2]
[365527919,1749757832574,-1500.0,0.0001689,2]
[365527920,1749757832585,-1500.0,0.0001689,2]
[365527921,1749757832595,-151.0,0.0001689,2]
[365527922,1749757832604,-1500.0,0.0001689,2]
[365527923,1749757832614,-500.0,0.0001689,2]
[365527924,1749757832625,-500.0,0.0001689,2]
[365527925,1749757832635,-500.0,0.0001689,2]
[365527926,1749757832647,-500.0,0.0001689,2]
[365527927,1749757832656,-500.0,0.0001689,2]
[365527928,1749757832666,-500.0,0.0001689,2]
[365527929,1749757832676,-500.0,0.0001689,2]
[365527930,1749757832686,-668.65185757,0.0001689,2]
[365527931,1749757832695,-151.0,0.0001689,2]
[365527932,1749757832704,-500.0,0.0001689,2]
[365527933,1749757832714,-500.0,0.0001689,2]
[365527934,1749757832724,-500.0,0.0001689,2]
[365527935,1749757832734,-500.0,0.0001689,2]
[365527936,1749757832744,-500.0,0.0001689,2]
[365527937,1749757832753,-500.0,0.0001689,2]
[365527938,1749757832763,-151.0,0.0001689,2]
[365527939,1749757832773,-500.0,0.0001689,2]
[365527940,1749757832783,-151.0,0.0001689,2]
[365527942,1749757832794,-500.0,0.0001689,2]
[365527944,1749757832803,-151.0,0.0001689,2]
[365527946,1749757832813,-500.0,0.0001689,2]
[365527948,1749757832822,-500.0,0.0001689,2]
[365527950,1749757832832,-151.0,0.0001689,2]
[365527952,1749757832842,-500.0,0.0001689,2]
[365527954,1749757832852,-500.0,0.0001689,2]
[365527956,1749757832862,-257.46242383,0.0001689,2]
[365527958,1749757832871,-500.0,0.0001689,2]
[365527960,1749757832880,-500.0,0.0001689,2]
[365527962,1749757832891,-500.0,0.0001689,2]
[365527963,1749757832902,-500.0,0.0001689,2]
[365527966,1749757832912,-500.0,0.0001689,2]
[365527968,1749757832921,-500.0,0.0001689,2]
[365527969,1749757832931,-500.0,0.0001689,2]
[365527971,1749757832942,-500.0,0.0001689,2]
[365527974,1749757832952,-500.0,0.0001689,2]
[365527975,1749757832963,-500.0,0.0001689,2]
[365527977,1749757832972,-500.0,0.0001689,2]
[365527979,1749757832982,-500.0,0.0001689,2]
[365527981,1749757832992,-500.0,0.0001689,2]
[365527983,1749757833002,-500.0,0.0001689,2]
[365527985,1749757833011,-500.0,0.0001689,2]
[365527987,1749757833021,-500.0,0.0001689,2]
[365527989,1749757833032,-500.0,0.0001689,2]
[365527991,1749757833042,-500.0,0.0001689,2]
[365527993,1749757833052,-500.0,0.0001689,2]
[365527995,1749757833061,-500.0,0.0001689,2]
[365527997,1749757833071,-500.0,0.0001689,2]
[365527999,1749757833082,-755.58323841,0.0001689,2]
[365528001,1749757833092,-755.5832384,0.00016891,2]
[365528003,1749757833103,-755.5832384,0.00016892,2]
[365528005,1749757833113,-755.5832384,0.00016893,2]
[365528007,1749757833124,-755.5832384,0.00016894,2]
[365528009,1749757833135,-755.5832384,0.00016896,2]
[365528011,1749757833148,-755.5832384,0.00016897,2]
[365528013,1749757833159,-755.5832384,0.00016898,2]
[365528015,1749757833171,-755.5832384,0.00016899,2]
[365528017,1749757833182,-1000.0,0.000169,2]
[365528019,1749757833192,-5800.0,0.000169,2]
[365528021,1749757833203,-64382.9409,0.000169,2]
[365528022,1749757833213,-1000.0,0.000169,2]
[365528024,1749757833223,-1450.39299328,0.000169,2]
[365528026,1749757833233,-755.5832384,0.000169,2]
[365528027,1749757833244,-1167.05159023,0.000169,2]
[365528028,1749757833254,-5800.0,0.000169,2]
[365528029,1749757833264,-160.30486295,0.000169,2]
[365528030,1749757833274,-162.00149915,0.000169,2]
[365528031,1749757833284,-1922.1182607,0.000169,2]
[365528032,1749757833295,-1497.0,0.00016916,2]
[365528033,1749757833305,-1536.4036558,0.0001693,2]
[365528034,1749757833314,-237.0,0.0001693,2]
[365528035,1749757833324,-27877.82040823,0.00016933,2]
[365528036,1749757833333,-151.0,0.00016945,2]
[365528037,1749757833344,-1982.0,0.00016966,2]
[365528038,1749757833354,-500.0,0.00016973,2]
[365528039,1749757833364,-500.0,0.00016973,2]
[365528040,1749757833374,-501.58829197,0.00016973,2]
[365528041,1749757833384,-500.0,0.00016973,2]
[365528042,1749757833395,-500.0,0.00016973,2]
[365528043,1749757833406,-709.43,0.0001699,2]
[365528044,1749757833416,-709.43,0.0001699,2]
[365528045,1749757833426,-709.43,0.0001699,2]
[365528046,1749757833436,-709.43,0.0001699,2]
[365528047,1749757833447,-1789.05,0.0001699,2]
[365528048,1749757833457,-709.43,0.0001699,2]
[365528049,1749757833467,-1789.05,0.0001699,2]
[365528050,1749757833476,-833.43051846,0.00016993,2]
[365528051,1749757833486,-300.0,0.00016999,2]
[365528052,1749757833496,-300.0,0.00016999,2]
[365528053,1749757833506,-196.54,0.00016999,2]
[365528054,1749757833515,-1262.723,0.00016999,2]
[365528055,1749757833525,-500.0,0.00016999,2]
[365528056,1749757833535,-150.0,0.00016999,2]
[365528057,1749757833546,-500.0,0.00016999,2]
[365528058,1749757833556,-2214.0,0.00016999,2]
[365528059,1749757833567,-150.0,0.00016999,2]
[365528060,1749757833577,-300.0,0.00016999,2]
[365528061,1749757833587,-150.0,0.00016999,2]
[365528062,1749757833597,-500.0,0.00016999,2]
[365528063,1749757833607,-500.0,0.00016999,2]
[365528064,1749757833617,-150.0,0.00016999,2]
[365528065,1749757833628,-500.0,0.00016999,2]
[365528066,1749757833638,-150.0,0.00016999,2]
[365528067,1749757833650,-150.41739072,0.00016999,2]
[365528068,1749757833661,-202.9818085,0.00016999,2]
[365528069,1749757833671,-150.0,0.00016999,2]
[365528070,1749757833680,-500.0,0.00016999,2]
[365528071,1749757833690,-150.0,0.00016999,2]
[365528072,1749757833700,-500.0,0.00016999,2]
[365528073,1749757833710,-500.0,0.00016999,2]
[365528074,1749757833719,-434.45090789,0.00016999,2]
[365528075,1749757833729,-450.0,0.00016999,2]
[365528076,1749757833740,-500.0,0.00016999,2]
[365528077,1749757833750,-500.0,0.00016999,2]
[365528078,1749757833760,-172.05325611,0.00016999,2]
[365528079,1749757833770,-565.0,0.00017,2]
[365528080,1749757833780,-833.43051846,0.00017,3]
[365528081,1749757833790,-151.0,0.00017,2]
[365528082,1749757833800,-1587610.45926762,0.00017,2]
[365528083,1749757833831,-7301.7793317,0.00017,2]
[365528084,1749757833843,-475.93966776,0.00017,2]
[365528085,1749757833855,-1072.56398073,0.00017,2]
[365528086,1749757833866,-420.816,0.00017,2]
[365528087,1749757833877,-336.61583075,0.00017,2]
[365528088,1749757833894,-957.70112046,0.00017,2]
[365528089,1749757833927,-1250.1162014,0.00017,2]
[365528090,1749757833939,-549.64483236,0.00017,2]
[365528091,1749757833951,-373.73718571,0.00017,2]
[365528092,1749757833963,-8535.4575918,0.00017,2]
[365528096,1749757838295,-2203.98047787,0.00017,3]
[365528097,1749757838304,-36793.00778396,0.00017,3]
[365528098,1749757838510,-1100.0,0.00017,3]
[365528099,1749757838521,-19991.0,0.00017,3]
[365528100,1749757838560,-9049.38784273,0.00017,3]
[365528101,1749757838571,-35989.42395677,0.00017,3]
[365528102,1749757838583,-1555.69804949,0.00017,3]
[365528103,1749757838594,-545.81516402,0.00017,3]
[365528104,1749757838605,-13036.40164069,0.00017,3]
[365528113,1749757840443,-1110.79999987,0.00017,3]
[365528114,1749757840757,-266.6045124,0.00017,3]
[365528115,1749757840812,-1695.02842422,0.00017,3]
[365528116,1749757840824,-1161.1744049,0.00017,3]
[365528117,1749757840835,-50465.12695214,0.00017,3]
[365528118,1749757840845,-493778.87304786,0.00017,2]
[365528119,1749757840857,-2709.0,0.00017,2]
[365528120,1749757840883,-460.64999985,0.00017,2]
[365528121,1749757840896,-254781.47617819,0.00017,2]
[365528122,1749757840906,-1058521.04847746,0.00017,2]
[365528123,1749757840916,-500.0,0.00017,2]
[365528124,1749757840926,-244643.23906506,0.00017,2]
[365528137,1749757843395,-458.42276947,0.00017,2]
[365528139,1749757843410,-287.1089393,0.00017,2]
[365528140,1749757843447,-833.532,0.00017,2]
[365528141,1749757843459,-1144.75361003,0.00017,2]
[365528142,1749757843471,-389.35542564,0.00017,2]
[365528143,1749757843483,-252.47,0.00017,2]
[365528144,1749757843612,-792.17264811,0.00017,2]
[365528145,1749757843665,-590.08,0.00017,2]
[365528146,1749757843771,-881.27227305,0.00017,2]
[365528150,1749757846285,-1537.30479604,0.00017,2]
[365528151,1749757846297,-3599.98751343,0.00017,2]
[365528152,1749757846402,-4525.3307136,0.00017,2]
[365528153,1749757846529,-553.44999318,0.00017,2]
[365528154,1749757846817,-9000.74403122,0.00017,2]
[365528156,1749757871536,203.0,0.00015617,2]
[365528157,1749757991421,200.0,0.00015617,2]
[365528158,1749758034549,957.88,0.00014148,2]
[365528162,1749758411974,202.0,0.00015681,2]
[365528164,1749758742535,202.0,0.00015762,2]
[365528166,1749758895768,669.82,0.00015973,2]
[365528181,1749759031487,-150.0,0.00016052,2]
[365528183,1749759031497,-1000.0,0.00016197,2]
[365528184,1749759031507,-654.51,0.00016201,2]
[365528186,1749759031516,-200.0,0.00016241,7]
[365528187,1749759031525,-2208.87,0.00016247,2]
[365528189,1749759031534,-957.88,0.00016412,2]
[365528190,1749759031545,-1200.0,0.00016866,2]
[365528192,1749759031559,-802.0,0.00016868,2]
[365528193,1749759031571,-637.0,0.00016868,2]
[365528195,1749759031580,-748.3721,0.00016868,2]
[365528196,1749759031591,-1252.6279,0.00016868,2]
[365528198,1749759031602,-590.0,0.00016868,2]
[365528199,1749759031611,-927.0,0.00016868,2]
[365528201,1749759031620,-558.0,0.00016868,2]
[365528202,1749759031629,-1276.0,0.00016868,2]
[365528204,1749759031639,-1673.0,0.00016868,2]
[365528205,1749759031649,-1160.0,0.00016868,2]
[365528207,1749759031658,-202.0,0.00016868,3]
[365528208,1749759031667,-304.22614867,0.0001687,2]
[365528210,1749759031677,-1684.24061488,0.00016876,2]
[365528211,1749759031686,-1684.24061488,0.00016879,2]
[365528213,1749759031696,-739.29397747,0.00016882,2]
[365528215,1749759031706,-486.0,0.00016885,2]
[365528216,1749759031715,-867.9924602,0.00016886,2]
[365528218,1749759031726,-1957.856,0.0001689,2]
[365528219,1749759031735,-207.4,0.0001689,2]
[365528220,1749759031744,-3853.8261,0.0001689,2]
[365528221,1749759031753,-194.0,0.00016894,2]
[365528222,1749759031762,-200.0,0.00016895,2]
[365528223,1749759031771,-1488.65867184,0.00016897,2]
[365528224,1749759031780,-4087.0,0.00016897,2]
[365528225,1749759031789,-155.0,0.00016897,2]
[365528226,1749759031799,-7066.0,0.00016897,2]
[365528227,1749759031808,-2500.0,0.000169,2]
[365528228,1749759031817,-9108.56951787,0.000169,2]
[365528229,1749759031829,-1000.0,0.000169,2]
[365528233,1749759036181,-853.0,0.00016897,2]
[365528234,1749759036191,-1286.2371,0.000169,2]
[365528238,1749759036475,-4123.79752677,0.000169,2]
[365528240,1749759036487,-22615.58235536,0.000169,2]
[365528242,1749759036497,-1000.0,0.000169,2]
[365528244,1749759036506,-780.60681688,0.000169,2]
[365528246,1749759036516,-4124.2729,0.000169,2]
[365528248,1749759036525,-188.97861564,0.000169,2]
[365528250,1749759036536,-1281.4121738,0.000169,2]
[365528252,1749759036547,-164.54146514,0.000169,2]
[365528254,1749759036560,-7858.81773717,0.000169,2]
[365528269,1749759037449,-1347.49999999,0.000169,2]
[365528273,1749759037564,-2326.36514861,0.000169,2]
[365528274,1749759037579,-1523.36429711,0.000169,2]
[365528275,1749759037589,-168.0,0.00016907,2]
[365528276,1749759037598,-849.90928394,0.00016916,2]
[365528277,1749759037608,-304.22614867,0.00016922,2]
[365528278,1749759037617,-739.29397747,0.00016924,2]
[365528279,1749759037627,-61.92189549,0.00016941,2]
[365528280,1749759037639,-106.07810451,0.00016941,2]
[365528281,1749759037648,-214.80189549,0.00016945,2]
[365528282,1749759037660,-543.22513739,0.00016945,2]
[365528283,1749759037671,-1272.26963912,0.00016945,2]
[365528284,1749759037680,-304.22614867,0.0001696,2]
[365528285,1749759037691,-200.0,0.00016962,2]
[365528286,1749759037700,-361.10421221,0.00016969,2]
[365528287,1749759037712,-538.53800001,0.00016969,2]
[365528288,1749759037725,-886.35778778,0.00016969,2]
[365528289,1749759037735,-500.0,0.00016973,2]
[365528290,1749759037744,-500.0,0.00016973,2]
[365528291,1749759037753,-500.0,0.00016973,2]
[365528292,1749759037763,-500.0,0.00016973,2]
[365528293,1749759037772,-500.0,0.00016973,2]
[365528294,1749759037782,-502.09719273,0.00016973,2]
[365528295,1749759037791,-500.0,0.00016973,2]
[365528296,1749759037801,-500.0,0.00016973,2]
[365528297,1749759037811,-500.0,0.00016973,2]
[365528298,1749759037822,-500.0,0.00016973,2]
[365528299,1749759037831,-554.34078953,0.00016973,2]
[365528300,1749759037840,-500.0,0.00016973,2]
[365528302,1749759037849,-739.29397747,0.00016983,2]
[365528303,1749759037858,-1684.24061488,0.00016989,2]
[365528304,1749759037868,-151.0,0.0001699,2]
[365528305,1749759037877,-151.0,0.0001699,2]
[365528306,1749759037887,-151.0,0.0001699,2]
[365528307,1749759037896,-200.0,0.0001699,2]
[365528309,1749759037905,-151.0,0.0001699,2]
[365528310,1749759037914,-151.0,0.0001699,2]
[365528311,1749759037923,-151.0,0.0001699,2]
[365528312,1749759037932,-151.0,0.0001699,2]
[365528313,1749759037942,-151.0,0.0001699,2]
[365528314,1749759037951,-151.0,0.0001699,2]
[365528315,1749759037960,-151.0,0.0001699,2]
[365528316,1749759037970,-151.0,0.0001699,2]
[365528317,1749759037979,-151.0,0.0001699,2]
[365528318,1749759037989,-151.0,0.0001699,2]
[365528319,1749759037998,-151.0,0.0001699,2]
[365528320,1749759038008,-151.0,0.0001699,2]
[365528321,1749759038017,-151.0,0.0001699,2]
[365528322,1749759038027,-500.0,0.0001699,2]
[365528324,1749759038036,-188.0,0.0001699,2]
[365528325,1749759038045,-500.0,0.0001699,2]
[365528326,1749759038055,-500.0,0.0001699,2]
[365528327,1749759038064,-500.0,0.0001699,2]
[365528329,1749759038075,-500.0,0.0001699,2]
[365528331,1749759038084,-500.0,0.0001699,2]
[365528332,1749759038094,-500.0,0.0001699,2]
[365528333,1749759038103,-495.03527215,0.0001699,2]
[365528334,1749759038113,-1500.0,0.0001699,2]
[365528335,1749759038123,-1500.0,0.0001699,2]
[365528336,1749759038131,-1500.0,0.0001699,2]
[365528337,1749759038139,-375.97126773,0.0001699,2]
[365528338,1749759038147,-833.43051846,0.00016994,2]
[365528339,1749759038155,-300.0,0.00016999,2]
[365528340,1749759038163,-1010.178,0.00016999,2]
[365528341,1749759038171,-188.35,0.00016999,2]
[365528342,1749759038179,-500.0,0.00016999,2]
[365528343,1749759038188,-500.0,0.00016999,2]
[365528344,1749759038198,-150.0,0.00016999,2]
[365528345,1749759038207,-150.0,0.00016999,2]
[365528346,1749759038216,-500.0,0.00016999,2]
[365528347,1749759038225,-150.0,0.00016999,2]
[365528348,1749759038235,-500.0,0.00016999,2]
[365528349,1749759038244,-500.0,0.00016999,2]
[365528350,1749759038253,-500.0,0.00016999,2]
[365528351,1749759038262,-200.90136417,0.00016999,2]
[365528352,1749759038271,-1768.0,0.00016999,2]
[365528353,1749759038280,-150.0,0.00016999,2]
[365528356,1749759038606,-424.21515034,0.00016999,2]
[365528357,1749759038618,-617.0,0.00017,2]
[365528358,1749759038627,-833.43051846,0.00017,3]
[365528359,1749759038637,-1101.99023894,0.00017,3]
[365528360,1749759038646,-7636.49078636,0.00017,3]
[365528364,1749759039515,-106371.45451092,0.00017,3]
[365528365,1749759039525,-2105.41764886,0.00017,2]
[365528366,1749759039534,-19594.6903175,0.00017,2]
[365528367,1749759039624,-813.072159,0.000169,2]
[365528368,1749759039679,-1686.927841,0.000169,2]
[365528369,1749759039688,-1556758.83587971,0.00017,2]
[365528370,1749759039699,-279.686,0.00017,2]
[365528371,1749759039710,-851.63085807,0.00017,2]
[365528372,1749759040835,-884.0,0.00016897,2]
[365528373,1749759040845,-510.44063598,0.00017,2]
[365528374,1749759040940,-51320.98003738,0.00017,2]
[365528375,1749759040952,-68403.9607309,0.00017,2]
[365528376,1749759040964,-38269.36587915,0.00017,2]
[365528402,1749759042674,-874.575,0.00017,2]
[365528403,1749759042687,-257.095104,0.00017,2]
[365528404,1749759042728,-117539.37236735,0.00017,2]
[365528405,1749759042739,-352.407,0.00017,2]
[365528406,1749759042783,-489.05851451,0.00017,2]
[365528407,1749759042837,-690.75270973,0.00017,2]
[365528484,1749759045456,-2136.0,0.00017,2]
[365528485,1749759045468,-674.4516783,0.00017,2]
[365528486,1749759046090,-10677.5,0.00017,2]
[365528487,1749759046102,-1603.46211258,0.00017,2]
[365528488,1749759046250,-11287.5682265,0.00017,2]
[365528489,1749759046304,-53463.3613702,0.00017,2]
[365528490,1749759046316,-1773.43832682,0.00017,2]
[365528494,1749759166624,-156.08806021,0.00020027,30]
[365528495,1749759166653,-153.65,0.000201,31]
[365528496,1749759166681,-153.65,0.000201,31]
[365528497,1749759166711,-153.65,0.000201,31]
[365528498,1749759166738,-153.65,0.000201,31]
[365528499,1749759166763,-153.65,0.000201,31]
[365528500,1749759166789,-153.65,0.000201,31]
[365528501,1749759166813,-153.65,0.000201,31]
[365528502,1749759166839,-180.84156132,0.00020247,30]
[365528503,1749759166860,-156.08806021,0.00020247,30]
[365528504,1749759166884,-180.84156132,0.00020466,30]
[365528505,1749759166906,-156.08806021,0.00020466,30]
[365528506,1749759166929,-165.77063068,0.00020466,30]
[365528507,1749759166952,-180.84156132,0.00020685,30]
[365528508,1749759166974,-156.08806021,0.00020685,30]
[365528509,1749759167008,-4982.76,0.00023,30]
[365528510,1749759167028,-25680.89141553,0.00023,30]
[365528511,1749759167049,-695.61575874,0.00023,30]
[365528512,1749759167070,-800.0,0.00023,30]
[365528513,1749759167090,-800.0,0.00023,30]
[365528514,1749759167111,-1200.0,0.00023,30]
[365528515,1749759167132,-800.0,0.00023,30]
[365528516,1749759167152,-500.0,0.00023,30]
[365528517,1749759167174,-1200.0,0.00023,30]
[365528518,1749759167195,-800.0,0.00023,30]
[365528519,1749759167215,-500.0,0.00023,30]
[365528520,1749759167236,-1200.0,0.00023,30]
[365528521,1749759167256,-800.0,0.00023,30]
[365528522,1749759167277,-1200.0,0.00023,30]
[365528523,1749759167297,-800.0,0.00023,30]
[365528524,1749759167324,-1200.0,0.00023,30]
[365528525,1749759167344,-800.0,0.00023,30]
[365528526,1749759167365,-1200.0,0.00023,30]
[365528527,1749759167385,-800.0,0.00023,30]
[365528528,1749759167408,-1200.0,0.00023,30]
[365528529,1749759167460,-1200.0,0.00023,30]
[365528530,1749759167505,-800.0,0.00023,30]
[365528531,1749759167550,-1200.0,0.00023,30]
[365528532,1749759167594,-800.0,0.00023,30]
[365528533,1749759167634,-1200.0,0.00023,30]
[365528534,1749759167654,-1200.0,0.00023,30]
[365528535,1749759167676,-1200.0,0.00023,30]
[365528536,1749759167697,-800.0,0.00023,30]
[365528537,1749759167718,-1835.53280608,0.00023,30]
[365528538,1749759167738,-505.56058501,0.00023,30]
[365528539,1749759167760,-800.0,0.00023,30]
[365528540,1749759167781,-1097.74947444,0.00023,30]
[365528541,1749759167801,-900.0,0.00023,30]